Cogmind - Beta 15 @@@ ROGUE MODE // 2025.07.04 @ 12:46:46 Player: BlobtheGreat Result: Destroyed by YI-UF0 with YI-UF0's Doublenader Performance ------------- Evolutions (0) 0 Regions Visited (2) 400 Robots Destroyed (32) 160 Value Destroyed (594) 594 Prototype IDs (0) 0 Alien Tech Used (0) 0 Bonus (0) 0 TOTAL SCORE: 1154 Bonus ------- None Cogmind --------- Core Integrity 0/250 Matter 213/300 Energy 85/100 System Corruption 0% Temperature Cool (0) Movement Core (400) Ox7 Location -10/Mines Parts ------- > --- POWER (1) -------- (None) > --- PROPULSION (2) --- (None) > --- UTILITY (2) ------ Large Storage Unit > --- WEAPON (2) ------- Light Assault Rifle Light Assault Rifle > --- INVENTORY (15) --- Light Treads Light Treads Light Treads Aluminum Leg Wheel Compact Wheel Heat Sink Small Storage Unit Huge Storage Unit Seismic Detector Utility Shielding Peak State ------------ > --- POWER ------------ Light Ion Engine > --- PROPULSION ------- Light Treads Light Treads > --- UTILITY ---------- Large Storage Unit Light Armor Plating > --- WEAPON ----------- EM Pulse Gun Medium Laser > --- INVENTORY -------- Light Treads Light Treads Light Treads Aluminum Leg Aluminum Leg Wheel Compact Wheel Heat Sink Small Storage Unit Huge Storage Unit Seismic Detector Utility Shielding Small Laser [Rating: 8] Favorites ----------- Power Light Ion Engine Engine Light Ion Engine Propulsion Light Treads Treads Light Treads Utility Large Storage Unit Device Seismic Detector Storage Large Storage Unit Protection Light Armor Plating Weapon Medium Laser Energy Gun Medium Laser Ballistic Gun Assault Rifle Launcher Grenade Launcher Build | -11 -10 -10 ------- Run | Yrd Mat Min Slots Evolved . | . . . Power . | . . . Propulsion . | . . . Utility . | . . . Weapon . | . . . Parts Attached 17 | 8 2 7 Power 3 | 1 1 1 Engine 3 | 1 1 1 Core . | . . . Reactor . | . . . Propulsion 3 | 2 . 1 Treads 3 | 2 . 1 Leg . | . . . Wheel . | . . . Hover . | . . . Flight . | . . . Utility 4 | 2 1 1 Device 1 | 1 . . Storage 2 | 1 1 . Processor . | . . . Hackware . | . . . Protection 1 | . . 1 Artifact . | . . . Weapon 7 | 3 . 4 Energy Gun 3 | 3 . . Energy Cannon . | . . . Ballistic Gun 3 | . . 3 Ballistic Cannon . | . . . Launcher 1 | . . 1 Special Weapon . | . . . Impact Weapon . | . . . Slashing Weapon . | . . . Piercing Weapon . | . . . Special Melee Weapon . | . . . Unidentified Prototypes . | . . . Parts Lost 13 | . 2 11 Power 3 | . 1 2 Propulsion 3 | . . 3 Utility 2 | . 1 1 Weapon 5 | . . 5 Highest Loss Streak 7 | . 1 7 To Critical Strikes 1 | . . 1 Average Backups 10 | 3 9 14 Power . | . . . Propulsion 5 | 2 4 7 Utility 3 | . 2 5 Weapon 1 | . 1 1 Tool/Special . | . . . Unused Backups 10 | . . 10 Power . | . . . Propulsion 7 | . . 7 Utility 3 | . . 3 Weapon . | . . . Tool/Special . | . . . Average Slot Usage (%) 90 | . 89 94 Engine 13 | . 14 12 Treads 27 | . 28 25 Device 3 | . 4 . Storage 14 | . 14 14 Protection 3 | . . 12 Energy Gun 24 | . 28 14 Ballistic Gun 3 | . . 12 Peak Build Rating 8 | 7 7 8 Average Rating 6 | 5 6 7 On Entrance 4 | . 7 7 Naked Turns . | . . . Heaviest Build 31 | 12 27 31 Greatest Support 40 | 40 40 40 Greatest Overweight (x) 1 | . . 1 Average Overweight (x) . | . . . Largest Inventory Capacity 15 | 8 15 15 Average Capacity 12 | 6 11 15 Most Carried 15 | 7 12 15 Average Carried 10 | 3 9 14 Final Capacity 15 | 8 15 15 Final Carried 12 | 7 12 11 Class Distribution -------------------- 100% | Mutant Dominant Class ---------------- Mutant | -10/Materials Mutant | -10/Mines Resources | -11 -10 -10 ----------- Run | Yrd Mat Min Matter Collected 378 | 280 35 63 Remotely . | . . . Salvage Created 898 | 91 640 167 Parts 70 | 12 45 13 Haulers Intercepted 2 | . 2 . Recyclers Shooed 2 | . 1 1 Parts Field Recycled . | . . . Retrieved Matter . | . . . Parts Self-Destructed . | . . . Prevented . | . . . Kills | -11 -10 -10 ------- Run | Yrd Mat Min Combat Hostiles Destroyed 21 | . 14 7 Guns 21 | . 14 7 Classes Destroyed 8 | 2 6 . Builder 2 | . 1 1 Tunneler 2 | 2 . . Hauler 2 | . 2 . Recycler 1 | 1 . . Mechanic 1 | . 1 . Watcher 3 | . 3 . Swarmer 11 | . 6 5 Grunt 10 | . 8 2 Best Kill Streak 6 | 3 6 3 Combat Bots Only 6 | . 6 3 Max Kills in Single Turn 2 | 1 2 1 Gunslinging 1 | . 1 . Exploded . | . . . Melee . | . . . Uniques/NPCs Destroyed . | . . . Combat | -11 -10 -10 -------- Run | Yrd Mat Min Hostile Shots Fired 126 | . 46 80 Missed 36 | . 14 22 Hits 90 | . 32 58 Projectile 90 | . 32 58 AOE 24 | . . 24 Critical Strikes 2 | . . 2 Damage Taken 1467 | . 383 1084 Core 272 | . 44 228 Absorbed by Shields . | . . . Core Remaining (%) 100 | 100 . . Volleys Fired 85 | 4 51 30 Largest 2 | 2 2 2 Hottest 90 | 90 90 90 Shots Fired 165 | 8 102 55 Gun 160 | 8 102 50 Cannon . | . . . Launcher 5 | . . 5 Special . | . . . Kinetic 27 | . . 27 Thermal 102 | 8 72 22 Explosive 5 | . . 5 Electromagnetic 31 | . 30 1 Robot Hit Streak 8 | 5 8 5 Robot Miss Streak 7 | . 3 7 Penetration Max . | . . . Secondary Targets 4 | . 3 1 Max Gunslinging Chain 1 | . 1 1 Shots Hit Robots 99 | 5 64 30 Core Hits 54 | 4 33 17 Critical Kills . | . . . Critical Parts Destroyed . | . . . Critical Strikes 3 | . 3 . Burn 3 | . 3 . Melee Attacks . | . . . Impact . | . . . Slashing . | . . . Piercing . | . . . Sneak Attacks . | . . . Combat Hostiles . | . . . Follow-up Attacks . | . . . Damage Inflicted 1409 | 58 979 372 Guns 1225 | 58 853 314 Cannons . | . . . Explosions 184 | . 126 58 Melee . | . . . Ramming . | . . . Kinetic 128 | . . 128 Thermal 904 | 58 660 186 Explosive 58 | . . 58 Electromagnetic 319 | . 319 . Impact . | . . . Slashing . | . . . Piercing . | . . . Highest Corruption . | . . . Average Corruption . | . . . Corruption Purged . | . . . Corruption Blocked . | . . . Overload Shots . | . . . Overflow Damage 3 | . . 3 Projectiles . | . . . Explosions 3 | . . 3 Melee . | . . . Knockbacks . | . . . Impact . | . . . Kinetic . | . . . Secondary . | . . . Self-Inflicted Damage 39 | . 39 . Shots 1 | . 1 . Rammed . | . . . Targets Rammed . | . . . Kicked . | . . . Crushed . | . . . Highest Temperature 288 | 90 288 79 Average Temperature 76 | 40 93 27 Received Heat Transfer 198 | . 150 48 Effects 3 | . 3 . Interference 3 | . 3 . Siege Activations . | . . . Martial Activations . | . . . Shielding Activations . | . . . Robots Disrupted . | . . . Combat Hostiles . | . . . Robots Corrupted . | . . . Combat Hostiles . | . . . Parts Fried 2 | . 2 . Impact Corruptions . | . . . Robots Melted . | . . . Combat Hostiles . | . . . Parts Melted 3 | . 3 . Heat Transferred 2481 | 149 1920 412 Parts Sabotaged . | . . . Parts Stolen . | . . . Parts Stripped . | . . . Power Chain Reactions 3 | . 3 . Alert | -11 -10 -10 ------- Run | Yrd Mat Min Maximum Alert Level . | . . . Low Security (%) 100 | 100 100 100 Level 1 . | . . . Level 2 . | . . . Level 3 . | . . . Level 4 . | . . . Level 5 . | . . . High Security . | . . . Max Security . | . . . Peak Influence 166 | 10 166 81 Initial 9 | . . 9 Average 50 | 1 66 20 Influence Increases 680 | 15 478 187 Destroy 0b10 Robot/C 420 | . 280 140 Destroy 0b10 Robot/NC 55 | 15 35 5 Destroy Leader 80 | . 60 20 Successful Hack 29 | . 29 . Disable Machine 15 | . 15 . Destroy Structure 21 | . 14 7 Lose Combat Pursuer 60 | . 45 15 Influence Decreases 680 | 15 454 211 Entered New Map 15 | . . 15 Time Decay 617 | 15 434 168 Lost Part 48 | . 20 28 Squads Dispatched 1 | . 1 . Investigation . | . . . Extermination . | . . . Reinforcement 1 | . 1 . Assault . | . . . Garrison . | . . . Intercept . | . . . Searches Triggered . | . . . Construction Impeded . | . . . Haulers Reinforced . | . . . Active Scanning Responses . | . . . Cargo Convoy Interrupts . | . . . Stealth | -11 -10 -10 --------- Run | Yrd Mat Min Distress Signals 3 | . 3 . Communications Jammed . | . . . Distress Signals . | . . . Times Spotted 38 | . 27 11 Peak Tracking Total 4 | . 4 3 Tactical Retreats 3 | . 2 1 Traps | -11 -10 -10 ------- Run | Yrd Mat Min Traps Triggered 1 | . 1 . Indirectly . | . . . Trap Hack Attempts . | . . . Triggered . | . . . Disarmed . | . . . Reprogrammed . | . . . Reused . | . . . Traps Extracted . | . . . Installed . | . . . Triggered . | . . . Machines | -11 -10 -10 ---------- Run | Yrd Mat Min Machines Disabled 1 | . 1 . Max in Single Turn 1 | . 1 . Machines Repaired . | . . . Machines Dismantled . | . . . Machines Sabotaged . | . . . Overloaded Fab Kills . | . . . Hacking | -11 -10 -10 --------- Run | Yrd Mat Min Machines Accessed 8 | . 8 . Terminals 8 | . 8 . Fabricators . | . . . Repair Stations . | . . . Recycling Units . | . . . Scanalyzers . | . . . Garrison Access . | . . . Total Hacks 30 | . 30 . Successful 15 | . 15 . Failed 15 | . 15 . Catastrophic 3 | . 3 . Database Lockouts . | . . . Manual 26 | . 26 . Terminals 30 | . 30 . Fabricators . | . . . Repair Stations . | . . . Recycling Units . | . . . Scanalyzers . | . . . Garrison Access . | . . . Terminal Hacks 8 | . 8 . Robot Analysis 4 | . 4 . Terminal Index 1 | . 1 . Locate Traps 1 | . 1 . Hauler Manifests 1 | . 1 . Zone Layout 1 | . 1 . Fabricator Hacks . | . . . Repair Station Hacks . | . . . Recycling Unit Hacks . | . . . Scanalyzer . | . . . Garrison Access Hacks . | . . . Unauthorized Hacks 7 | . 7 . Terminals 7 | . 7 . Botnet 1 | . 1 . Skim 6 | . 6 . Fabricators . | . . . Repair Stations . | . . . Recycling Units . | . . . Scanalyzers . | . . . Garrison Access . | . . . Data Cores Recovered . | . . . Used . | . . . Hacking Detections 8 | . 8 . Full Trace Events . | . . . Feedback Events . | . . . Feedback Blocked . | . . . Robot Schematics Acquired . | . . . Robots Built . | . . . Authchips . | . . . Time . | . . . Total Robot Build Rating . | . . . Part Schematics Acquired . | . . . Parts Built . | . . . Authchips . | . . . Time . | . . . Total Part Build Rating . | . . . Parts Repaired . | . . . Time . | . . . Parts Recycled . | . . . Recycled Matter . | . . . Retrieved Matter . | . . . Retrieved Components . | . . . Parts Scanalyzed . | . . . Part Schematics Acquired . | . . . Parts Damaged . | . . . Bothacking | -11 -10 -10 ------------ Run | Yrd Mat Min Used RIF Installer . | . . . Robots Hacked . | . . . Non-combat . | . . . Combat . | . . . Robot Hacks Applied . | . . . Relay Couplers Released . | . . . Fabnet Peak Effective % . | . . . Robots Rewired . | . . . Allies Hacked . | . . . Hacks Repelled . | . . . Allies | -11 -10 -10 -------- Run | Yrd Mat Min Total Allies . | . . . Largest Group . | . . . Highest-Rated Group . | . . . Highest-Rated Ally . | . . . Total Orders . | . . . Ally Attacks . | . . . Total Damage . | . . . Kills . | . . . Allies Corrupted . | . . . Allies Melted . | . . . Intel | -11 -10 -10 ------- Run | Yrd Mat Min Active Infowar (turns) 454 | 40 414 . Seismic 454 | 40 414 . Robot Analysis Total 4 | . 4 . Derelict Logs Recovered 1 | . . 1 Drone Launches . | . . . Drone Recoveries . | . . . Exploration | -11 -10 -10 ------------- Run | Yrd Mat Min Turns Passed 2092 | 117 1409 566 Spaces Moved 1092 | 56 761 275 Core 2 | 2 . . Treads 1090 | 54 761 275 Legs . | . . . Wheels . | . . . Hover . | . . . Flight . | . . . Fastest Speed 50 | 50 160 160 Average Speed 161 | 156 160 167 Slowest Speed 240 | 160 160 240 Overloaded Moves . | . . . Propulsion Burnouts . | . . . Robots Hopped . | . . . Potential Cave-ins . | . . . Cave-ins Triggered . | . . . Exploration Rate (%) 50 | 4 94 53 Regions Visited 2 Branch Regions 1 Pre-discovered Areas 3 | . 2 1 Known Exits Taken . | . . . Unknown Exits Taken 2 | 1 1 . Scrap Searched 1 | . . 1 Spaces Dug . | . . . Terrain Destroyed 36 | . 12 24 Melee . | . . . Projectile . | . . . AOE 36 | . 12 24 Terrain Rammed . | . . . Walls Destroyed . | . . . Machines Disabled . | . . . Actions | -11 -10 -10 --------- Run | Yrd Mat Min Total 1249 | 74 850 325 Wait 35 | . 29 6 Move 1090 | 55 760 275 Hop . | . . . Pick Up 17 | 7 5 5 Fast Attach 12 | 7 2 3 Attach 6 | . 1 5 Detach 1 | . 1 . Swap 2 | 1 1 . Drop 1 | . . 1 Fire 85 | 4 51 30 Melee . | . . . Ram . | . . . Kick . | . . . Crush . | . . . Escape Stasis . | . . . Rewire . | . . . Trap . | . . . Miscellaneous . | . . . Route ------- -11/Scrapyard -10/Materials (discovered 5 exits: *Mat x3 / [*Min] / Sub) -10/Mines (discovered 1 exit: *Mat) History --------- Turn | Location | Event 7 | -11/Scrapyard | Discovered new exit (range 16) 118 | -11/Scrapyard | Entered Materials 309 | -10/Materials | Build established: Mutant 311 | -10/Materials | Discovered new exit (range 16) 658 | -10/Materials | Discovered new exit (range 10) 986 | -10/Materials | Discovered new exit (range 13) 1048 | -10/Materials | Discovered new exit (range 13) 1081 | -10/Materials | Learned 2 Mines zone layouts 1155 | -10/Materials | Learned Storage emergency access door positions 1316 | -10/Materials | Identified exit to Subcaves 1350 | -10/Materials | Learned 4 Subcaves zone layouts 1396 | -10/Materials | Loaded intel: 19 trap records 1527 | -10/Materials | Entered Mines 1528 | -10/Mines | Identified exit to Materials 1532 | -10/Mines | Joined a pair of Derelicts in attacking an 0b10 outpost 1765 | -10/Mines | Learned location of Recycling (-7) 1806 | -10/Mines | YI-UF0 nonchalantly dropped a Grenade Launcher on the ground 2082 | -10/Mines | Core integrity fell below 50% 2092 | -10/Mines | Core integrity fell below 20% 2093 | -10/Mines | Destroyed by YI-UF0 with YI-UF0's Doublenader Last Messages --------------- 02074_ U-05 Engineer destroyed. 02075_ The unstable cave ceiling collapses. 02076_ YI-UF0 mumbles something. 02077_ Destroyed Shock Absorption System. 02079_ The unstable cave ceiling collapses. 02081_ Grenade Launcher destroyed. 02082_ The unstable cave ceiling collapses. 02085_ Lgt. Treads destroyed. 02085_ YI-UF0: "WHOMP!" 02085_ T-07 Excavator destroyed. 02087_ YI-UF0 mumbles something. 02088_ U-05 Engineer lays Concrete. 02089_ The unstable cave ceiling collapses. 02089_ Assault Rifle destroyed. 02089_ U-05 Engineer lays Concrete. 02090_ The unstable cave ceiling collapses. 02091_ U-05 Engineer lays Concrete. 02091_ K-01 Serf collects debris. 02092_ U-05 Engineer lays Concrete. 02093_ The unstable cave ceiling collapses. Map ----- +----------------------------------------------------+ | ???????????# ##???????###### ##????? | | ???????????# #????????????# #####?????? | | ?????????### ##???????????## ###?????????? | | ?????????? ###?????????## ##???????????? | | ??????????# ##????????# ##???????????? | | ????????????# ##???????# #####???????? | | ???????####### ##??##### ##??????? | | ??????## %## ##?# = #??????? | | ??????#"" =# ### % #??????? | | ??????# %" ## ###### #??????? | | ??????#!! %+% #????## #??????? | | ??????#"" # #####?????## ##??????? | | ??????##"%## #??????????# #???????? | | ???????##### #?????????## = #???????? | | ???????????## #??????#### ##???????? | | ?#######????## ##?????## r ##????????? | | ?# #?????## ##?????## ###?????????? | | ?# """ #??????## ##?????## ###???????????? | | ?# """ #???????# ##??????# k ##?????????????? | | ?# """ #???????#==###???????# ! ##??????????????? | | ?# #???#####%%######??### r# ###????????????? | | ?# ##### = ## ## # #####????????? | | ?## ### %* ! # #????????? | | ??# #?# #### ## #??????? | | ??# #?# #??# ## g #????? | | ??# #?# #??# @ [ ###??????? | | ??# ### #??# # [#????????? | | ??# ### u # %???????? | | ??####### ## # ## ####???????????? | | ??????## < # #???#??????????????? | | ??????# ## # #??????????????????? | | ??????# ## #??????????????????? | | ??????# ### #??????????????????? | | ??????# #####?### ##???????????????????# | | ??????#####???????##### #????????????????????? | | ??????????????????????## ##????????????????????? | | ???????????????????????# ##?????????????????????? | | ??????????????????????## ???????????????????????# | | ?????????????????????## ??????????????????????? | | ?????????????????????# ??????????????????????? | | ?????????????????????# ??????????????????????? | | ?????????????????????## ????????????????????????? | | ??????????????????????##????????????????????????? | | ???????????????????????#?????????????????????????# | | ?????????????????????????????????????????????????# | | ?????????????????????????????????????????????????# | | ?????????????????????????????????????????????????? | | ?????????????????????????????????????????????????? | | ?????????????????????????????????????????????????? | | ?????????????????????????????????????????????????? | +----------------------------------------------------+ Best States ------------- Heat Dissipation 25 Energy Generation 10 Energy Capacity 250 Matter Stores 300 Matter Capacity 300 Sight Range 16 Terrain Scan Density 10 Armor Coverage 150 Evasion (%) 40 Recoil Reduction 2 Item Schematics ----------------- None Robot Schematics ------------------ None Fabricated ------------ Nothing Repaired ---------- Nothing Alien Tech Used ----------------- None Achievements -------------- None Challenges ------------ None Game ------ Seed BehemothChainDrive Manual? 0 Play Time 00:13:34 Cumulative 59.9 hours Start 2025.07.04 @ 12:35:51 End 2025.07.04 @ 12:46:46 Sessions 1 Manual Loads 0 Difficulty Rogue Special Mode None Game No. 56 Rogue 56 Adventurer 0 Explorer 0 Win Type - Total 1 Types 1/0/0/0/0/0/0/0/0/0 Lore% 39 Gallery% 36 Achievement% 36 Wizard Run 0 Options --------- Layout 1 ASCII 0 Keyboard 1 Movement Arrows Keybinds 0 Fullscreen 1 Font 24/Smallcaps Map View 50x40 Zoom Use 0% Tactical HUD 1 Map Filters NONE Filters NONE Steam 1 RUN: 5c290a81-993d-4edf-8dfd-90c852757f6c